fUSD/lending_fUSD_20260215
["ID","MTS","AMOUNT","RATE_DAILY","PERIOD"]
[405567677,1771198245560,-7340.51225,0.00015013,2]
[405567678,1771198245573,-5865.29999984,0.00015013,2]
[405567679,1771198245788,-350.625,0.00015013,2]
[405567680,1771198252608,500.0,0.00014355,2]
[405567682,1771198298800,3386.768,0.00014713,2]
[405567683,1771198298942,331.056,0.00014713,2]
[405567694,1771198322078,3173.22098604,0.00014913,2]
[405567696,1771198353836,500.0,0.0001489,2]
[405567697,1771198367068,650.17260714,0.00015083,3]
[405567698,1771198367124,875.25028036,0.00015083,3]
[405567699,1771198367174,950.27617143,0.00015083,3]
[405567700,1771198367235,1025.30206251,0.00015083,3]
[405567701,1771198377280,165.77460071,0.00014912,2]
[405567702,1771198491470,325.47,0.00014661,2]
[405567703,1771198518428,1617.72041325,0.00014621,2]
[405567704,1771198518452,227.90958675,0.00014621,2]
[405567707,1771198543771,9772.10041325,0.000149,2]
[405567708,1771198543802,10000.01,0.000149,2]
[405567709,1771198543832,10000.01,0.000149,2]
[405567710,1771198543868,10000.01,0.000149,2]
[405567711,1771198543901,10000.01,0.000149,2]
[405567712,1771198543938,10000.01,0.000149,2]
[405567713,1771198543971,10000.01,0.000149,2]
[405567714,1771198544005,10000.01,0.000149,2]
[405567715,1771198544038,10000.01,0.000149,2]
[405567717,1771198553196,-166.66,0.00013922,2]
[405567718,1771198553227,-166.66,0.00014215,2]
[405567719,1771198553257,-166.66,0.00014508,2]
[405567720,1771198553287,-500.0,0.00014661,2]
[405567721,1771198553319,-166.66,0.00014801,2]
[405567722,1771198578141,733.87424802,0.0001481,2]
[405567723,1771198634747,210.58183564,0.0001481,2]
[405567724,1771198634792,2630.26775205,0.0001481,2]
[405567725,1771198637165,384.83297307,0.0001481,2]
[405567726,1771198691934,3707.17319122,0.0001481,2]
[405567727,1771198691963,10000.01,0.0001481,2]
[405567728,1771198691986,10000.01,0.0001481,2]
[405567729,1771198692009,10000.01,0.0001481,2]
[405567730,1771198696560,-3989.64518469,0.0001481,2]
[405567731,1771198696743,-2020.71963062,0.0001481,2]
[405567733,1771198775291,200.0,0.00014081,2]
[405567736,1771198851987,500.0,0.00014081,2]
[405567737,1771198874513,1451.65827053,0.000147,3]
[405567738,1771198874619,1586.31257438,0.000147,3]
[405567739,1771198874712,1720.96687823,0.000147,3]
[405567740,1771198874767,1047.69535898,0.000147,3]
[405567742,1771198924361,10000.01,0.00014077,2]
[405567743,1771198927411,-1852.42,0.00014055,2]
[405567744,1771198927443,-867.11,0.00014077,2]
[405567751,1771199050890,419.20084672,0.000147,3]
[405567752,1771199050965,540.34122775,0.000147,3]
[405567753,1771199051011,580.72135476,0.000147,3]
[405567754,1771199051055,621.10148177,0.000147,3]
[405567756,1771199104040,1483.42,0.00022,120]
[405567757,1771199174046,180.68,0.000139,2]
[405567758,1771199229335,210.12059196,0.000146,3]
[405567759,1771199229392,237.17485834,0.000146,3]
[405567760,1771199229443,246.19294713,0.000146,3]
[405567761,1771199229498,255.21103593,0.000146,3]
[405567764,1771199341193,9819.33,0.00013836,2]
[405567765,1771199341219,10000.01,0.00013836,2]
[405567769,1771199431702,-523.86946935,0.00013667,2]
[405567770,1771199431715,-319.73053065,0.00013667,2]
[405567771,1771199431724,-262.0,0.00013667,2]
[405567772,1771199431735,-200.0,0.00013699,2]
[405567773,1771199431745,-300.0,0.00013835,2]
[405567774,1771199431754,-1200.0,0.00013835,2]
[405567775,1771199431765,-300.0,0.00013835,2]
[405567776,1771199431774,-14227.54166463,0.00013836,2]
[405567777,1771199431786,-391.88,0.00013836,2]
[405567778,1771199431801,-645.79236201,0.00013836,2]
[405567779,1771199431833,-24651.09597336,0.00013836,2]
[405567780,1771199431844,-600.0,0.00013892,2]
[405567781,1771199431854,-600.0,0.00013926,2]
[405567782,1771199431863,-544.0,0.00013948,2]
[405567783,1771199431873,-250.0,0.00013948,2]
[405567784,1771199431883,-600.0,0.00013948,2]
[405567785,1771199431892,-195.0,0.00013948,2]
[405567786,1771199431903,-250.0,0.00013949,2]
[405567787,1771199431913,-10606.69,0.00013949,2]
[405567788,1771199431924,-3240.0,0.0001395,2]
[405567789,1771199431934,-195.0,0.00013961,2]
[405567790,1771199431944,-210.02,0.00013961,2]
[405567791,1771199431953,-4560.95,0.00014077,2]
[405567792,1771199431963,-150.0,0.00014502,2]
[405567794,1771199431971,-150.99,0.00014503,2]
[405567795,1771199431981,-299.99,0.00014503,2]
[405567796,1771199431991,-3208.15,0.00014503,2]
[405567797,1771199432001,-9999.99,0.00014503,2]
[405567798,1771199432011,-2709.414,0.00014504,2]
[405567799,1771199432020,-264.845,0.00014504,2]
[405567800,1771199432029,-9999.99,0.00014504,2]
[405567801,1771199432040,-999.99,0.00014504,2]
[405567802,1771199432050,-9999.99,0.00014504,2]
[405567803,1771199432059,-1028.0,0.00014531,2]
[405567804,1771199432070,-3690.90610238,0.000146,2]
[405567805,1771199432079,-6735.9188,0.000146,2]
[405567806,1771199432089,-610.79072136,0.000146,2]
[405567807,1771199432102,-656.98292055,0.000146,2]
[405567808,1771199432114,-11393.76567565,0.000146,2]
[405567809,1771199432123,-2191.8897934,0.000146,2]
[405567810,1771199432133,-8670.88293875,0.000146,2]
[405567811,1771199432143,-234.0,0.00014662,2]
[405567812,1771199432155,-207.5862231,0.0001469,2]
[405567813,1771199432169,-779.82844146,0.00014699,2]
[405567814,1771199432184,-255.47094652,0.000147,2]
[405567815,1771199432196,-623346.5353176,0.000147,2]
[405567816,1771199432211,-2503.77056517,0.000147,2]
[405567819,1771199437827,-151.0,0.00014697,2]
[405567820,1771199437839,-1525.49699597,0.000147,2]
[405567821,1771199437852,-2872624.19712126,0.000147,2]
[405567822,1771199437866,-3159.9036,0.000147,2]
[405567823,1771199437878,-13862.69,0.000147,2]
[405567824,1771199437890,-2500.0,0.000147,2]
[405567825,1771199437901,-5905.12185257,0.000147,2]
[405567826,1771199437913,-200.0,0.00014791,2]
[405567827,1771199437923,-500.0,0.00014791,2]
[405567828,1771199437935,-500.0,0.00014791,2]
[405567829,1771199437946,-500.0,0.00014791,2]
[405567830,1771199437958,-500.0,0.00014791,2]
[405567831,1771199437969,-500.0,0.00014791,2]
[405567832,1771199437980,-500.0,0.00014791,2]
[405567833,1771199437991,-500.0,0.00014791,2]
[405567834,1771199438002,-500.0,0.00014791,2]
[405567835,1771199438014,-500.0,0.00014791,2]
[405567836,1771199438025,-500.0,0.00014791,2]
[405567837,1771199438037,-500.0,0.00014791,2]
[405567838,1771199438053,-200.0,0.00014791,2]
[405567839,1771199438064,-500.0,0.00014791,2]
[405567840,1771199438076,-151.0,0.00014791,2]
[405567841,1771199438087,-151.0,0.00014791,2]
[405567842,1771199438099,-151.0,0.00014791,2]
[405567843,1771199438114,-151.0,0.00014791,2]
[405567844,1771199438126,-151.0,0.00014791,2]
[405567845,1771199438138,-151.0,0.00014791,2]
[405567846,1771199438150,-151.0,0.00014791,2]
[405567847,1771199438162,-151.0,0.00014791,2]
[405567849,1771199438173,-151.0,0.00014791,2]
[405567852,1771199438187,-151.0,0.00014791,2]
[405567854,1771199438198,-151.0,0.00014791,2]
[405567856,1771199438209,-151.0,0.00014791,2]
[405567858,1771199438221,-151.0,0.00014791,2]
[405567860,1771199438232,-151.0,0.00014791,2]
[405567862,1771199438248,-151.0,0.00014791,2]
[405567864,1771199438260,-151.0,0.00014791,2]
[405567866,1771199438272,-151.0,0.00014791,2]
[405567867,1771199438284,-151.0,0.00014791,2]
[405567868,1771199438296,-151.0,0.00014791,2]
[405567869,1771199438308,-151.0,0.00014791,2]
[405567870,1771199438321,-151.0,0.00014791,2]
[405567871,1771199438333,-151.0,0.00014791,2]
[405567872,1771199438345,-151.0,0.00014791,2]
[405567873,1771199438357,-151.0,0.00014791,2]
[405567874,1771199438368,-151.0,0.00014791,2]
[405567875,1771199438380,-151.0,0.00014791,2]
[405567876,1771199438391,-151.0,0.00014791,2]
[405567877,1771199438403,-151.0,0.00014791,2]
[405567878,1771199438414,-151.0,0.00014791,2]
[405567879,1771199438426,-151.0,0.00014791,2]
[405567880,1771199438441,-151.0,0.00014791,2]
[405567881,1771199438453,-500.0,0.00014791,2]
[405567882,1771199438464,-500.0,0.00014791,2]
[405567883,1771199438476,-500.0,0.00014791,2]
[405567884,1771199438488,-500.0,0.00014791,2]
[405567885,1771199438499,-500.0,0.00014791,2]
[405567886,1771199438511,-500.0,0.00014791,2]
[405567887,1771199438524,-500.0,0.00014791,2]
[405567888,1771199438536,-500.0,0.00014791,2]
[405567889,1771199439703,-500.0,0.00014791,2]
[405567890,1771199439737,-500.0,0.00014791,2]
[405567891,1771199439767,-500.0,0.00014791,2]
[405567892,1771199439800,-500.0,0.00014799,2]
[405567893,1771199439815,-526.20038963,0.00014799,2]
[405567894,1771199439826,-540.53950466,0.00014799,2]
[405567895,1771199439836,-157.78785452,0.00014799,2]
[405567896,1771199439847,-500.0,0.00014799,2]
[405567897,1771199439858,-649.34752281,0.00014799,2]
[405567898,1771199439868,-500.0,0.00014799,2]
[405567899,1771199439878,-283.22598168,0.00014799,2]
[405567900,1771199439888,-500.0,0.00014799,2]
[405567901,1771199439898,-500.0,0.00014799,2]
[405567902,1771199439911,-500.0,0.00014799,2]
[405567903,1771199439922,-500.0,0.00014799,2]
[405567904,1771199439932,-532.58462425,0.00014799,2]
[405567905,1771199439944,-500.0,0.00014799,2]
[405567906,1771199439954,-500.0,0.00014799,2]
[405567907,1771199439965,-500.0,0.00014799,2]
[405567908,1771199439975,-500.0,0.00014799,2]
[405567909,1771199439985,-500.0,0.00014799,2]
[405567910,1771199439995,-500.0,0.00014799,2]
[405567911,1771199440007,-500.0,0.00014799,2]
[405567912,1771199440016,-500.0,0.00014799,2]
[405567913,1771199440026,-500.0,0.00014799,2]
[405567914,1771199440036,-500.0,0.00014799,2]
[405567915,1771199440047,-500.0,0.00014799,2]
[405567916,1771199440058,-500.0,0.00014799,2]
[405567917,1771199440068,-500.0,0.00014799,2]
[405567918,1771199440078,-500.0,0.00014799,2]
[405567919,1771199440087,-500.0,0.00014799,2]
[405567920,1771199440098,-500.0,0.00014799,2]
[405567921,1771199440111,-500.0,0.00014799,2]
[405567922,1771199440122,-500.0,0.00014799,2]
[405567923,1771199440132,-500.0,0.00014799,2]
[405567924,1771199440142,-500.0,0.00014799,2]
[405567925,1771199440154,-500.0,0.00014799,2]
[405567926,1771199440163,-500.0,0.00014799,2]
[405567927,1771199440173,-500.0,0.00014799,2]
[405567928,1771199440186,-500.0,0.00014799,2]
[405567929,1771199440196,-500.0,0.00014799,2]
[405567930,1771199440205,-438.50973921,0.00014799,2]
[405567931,1771199440215,-1000.0,0.00014809,2]
[405567932,1771199440225,-1540.0,0.00014851,2]
[405567933,1771199440235,-1914.0,0.0001488,2]
[405567934,1771199440245,-245.39,0.00014899,2]
[405567935,1771199440255,-500.0,0.00014899,2]
[405567936,1771199440266,-500.0,0.00014899,2]
[405567937,1771199440276,-500.0,0.00014899,2]
[405567938,1771199440286,-500.0,0.00014899,2]
[405567939,1771199440301,-500.0,0.00014899,2]
[405567940,1771199440311,-500.0,0.00014899,2]
[405567941,1771199440321,-500.0,0.00014899,2]
[405567942,1771199440331,-500.0,0.00014899,2]
[405567943,1771199440341,-613.34,0.00014899,2]
[405567944,1771199440351,-606.20439671,0.00014899,2]
[405567945,1771199440361,-500.0,0.00014899,2]
[405567946,1771199440371,-500.0,0.00014899,2]
[405567947,1771199440381,-500.0,0.00014899,2]
[405567948,1771199440391,-500.0,0.00014899,2]
[405567949,1771199440401,-500.0,0.0001491,2]
[405567950,1771199440411,-826.0,0.0001491,2]
[405567951,1771199440423,-10000.0,0.00014913,2]
[405567952,1771199440433,-11393.76567565,0.00014967,2]
[405567953,1771199440443,-250.0,0.00015,2]
[405567954,1771199440453,-34046.27413047,0.00015011,2]
[405567955,1771199440464,-500.0,0.00015012,2]
[405567956,1771199440474,-500.0,0.00015012,2]
[405567957,1771199440484,-500.0,0.00015012,2]
[405567958,1771199440494,-500.0,0.00015012,2]
[405567959,1771199440504,-500.0,0.00015012,2]
[405567960,1771199440513,-500.0,0.00015012,2]
[405567961,1771199440523,-500.0,0.00015012,2]
[405567962,1771199440533,-500.0,0.00015012,2]
[405567963,1771199440542,-500.0,0.00015012,2]
[405567964,1771199440552,-500.0,0.00015012,2]
[405567965,1771199440562,-500.0,0.00015012,2]
[405567966,1771199440572,-500.0,0.00015012,2]
[405567968,1771199440581,-500.0,0.00015012,2]
[405567969,1771199440591,-500.0,0.00015012,2]
[405567970,1771199440602,-500.0,0.00015012,2]
[405567971,1771199440612,-500.0,0.00015012,2]
[405567972,1771199440622,-500.0,0.00015012,2]
[405567973,1771199440632,-417.2866735,0.00015012,2]
[405567974,1771199440643,-500.0,0.00015012,2]
[405567975,1771199440653,-500.0,0.00015012,2]
[405567976,1771199440663,-500.0,0.00015012,2]
[405567977,1771199440675,-500.0,0.00015012,2]
[405567978,1771199440686,-500.0,0.00015012,2]
[405567979,1771199440696,-500.0,0.00015012,2]
[405567980,1771199440706,-500.0,0.00015012,2]
[405567981,1771199440716,-500.0,0.00015012,2]
[405567982,1771199440727,-500.0,0.00015034,2]
[405567983,1771199440737,-3690.90610235,0.00015071,2]
[405567984,1771199440747,-166.66,0.00015094,2]
[405567985,1771199440757,-420.0,0.00015159,2]
[405567986,1771199440767,-450.4,0.0001517,2]
[405567987,1771199440779,-36463.92,0.00015171,2]
[405567988,1771199440789,-245.39,0.00015173,2]
[405567989,1771199440799,-1000.0,0.00015218,2]
[405567990,1771199440809,-32840.4146,0.00015218,2]
[405567991,1771199440819,-1680.0,0.00015218,2]
[405567992,1771199440829,-5000.0,0.00015219,2]
[405567993,1771199440841,-195.0,0.00015219,2]
[405567994,1771199440850,-193.0,0.00015219,2]
[405567995,1771199440860,-600.0,0.00015219,2]
[405567996,1771199440870,-300.89888258,0.00015219,2]
[405567997,1771199440880,-2191.88979337,0.0001526,2]
[405567998,1771199440890,-5300.96121347,0.00015273,2]
[405567999,1771199440900,-11393.76567565,0.00015333,2]
[405568000,1771199440912,-200.0,0.00015339,2]
[405568001,1771199440922,-200.0,0.00015339,2]
[405568002,1771199440932,-500.0,0.00015339,2]
[405568003,1771199440941,-195.0,0.00015343,2]
[405568004,1771199440952,-250.0,0.00015343,2]
[405568005,1771199440961,-600.0,0.00015343,2]
[405568006,1771199440971,-1845.63,0.00015352,2]
[405568007,1771199440981,-169.76,0.00015381,2]
[405568008,1771199440991,-166.66,0.00015387,2]
[405568009,1771199441001,-471.77,0.00015413,2]
[405568010,1771199441011,-656.98292051,0.00015425,2]
[405568011,1771199441020,-1273.03725037,0.00015428,2]
[405568012,1771199441030,-621.76957416,0.00015428,2]
[405568013,1771199441040,-1931.97631839,0.00015428,2]
[405568014,1771199441051,-801.03815133,0.00015428,2]
[405568015,1771199441060,-245.39,0.00015447,2]
[405568016,1771199441070,-3690.90610235,0.00015543,2]
[405568017,1771199441080,-462.89245544,0.00015581,2]
[405568018,1771199441090,-255.0,0.00015619,2]
[405568019,1771199441100,-11393.76567565,0.000157,2]
[405568020,1771199441113,-298.49450224,0.00015855,2]
[405568021,1771199441127,-200.0,0.00015887,2]
[405568022,1771199441137,-200.0,0.00015887,2]
[405568023,1771199441150,-500.0,0.00015887,2]
[405568024,1771199441160,-2191.88979337,0.0001592,2]
[405568025,1771199441170,-3690.90610235,0.00016014,2]
[405568026,1771199441180,-11393.76567565,0.00016067,2]
[405568027,1771199441191,-1845.63,0.00016083,2]
[405568028,1771199441201,-500.0,0.00016161,2]
[405568029,1771199441211,-214.48368183,0.00016196,2]
[405568030,1771199441221,-656.98292051,0.0001625,2]
[405568031,1771199441231,-776.21,0.00016331,2]
[405568032,1771199441241,-11393.76567565,0.00016433,2]
[405568033,1771199441252,-200.0,0.00016435,2]
[405568034,1771199441262,-200.0,0.00016435,2]
[405568035,1771199441273,-500.0,0.00016435,2]
[405568036,1771199441283,-3690.90610235,0.00016486,2]
[405568037,1771199441294,-450.4,0.00016539,2]
[405568038,1771199441305,-2191.88979337,0.0001658,2]
[405568039,1771199441316,-776.21,0.00016605,2]
[405568040,1771199441327,-587.0,0.00016611,2]
[405568041,1771199441337,-2351.0,0.0001674,2]
[405568042,1771199441347,-743.50770149,0.00016787,2]
[405568043,1771199441358,-151.0,0.00016787,2]
[405568044,1771199441368,-209.40437684,0.00016787,2]
[405568045,1771199441378,-500.0,0.00016787,2]
[405568046,1771199441388,-151.0,0.00016787,2]
[405568047,1771199441398,-500.0,0.00016787,2]
[405568048,1771199441409,-151.0,0.00016787,2]
[405568049,1771199441419,-500.0,0.00016787,2]
[405568050,1771199441429,-151.0,0.00016787,2]
[405568051,1771199441440,-151.0,0.00016787,2]
[405568052,1771199441451,-500.0,0.00016787,2]
[405568053,1771199441462,-151.0,0.00016787,2]
[405568054,1771199441472,-500.0,0.00016787,2]
[405568055,1771199441482,-500.0,0.00016787,2]
[405568056,1771199441492,-151.0,0.00016787,2]
[405568057,1771199441502,-500.0,0.00016787,2]
[405568058,1771199441512,-151.0,0.00016787,2]
[405568059,1771199441523,-500.0,0.00016787,2]
[405568060,1771199441532,-151.0,0.00016787,2]
[405568061,1771199441543,-500.0,0.00016787,2]
[405568062,1771199441554,-151.0,0.00016787,2]
[405568063,1771199441564,-500.0,0.00016787,2]
[405568064,1771199441576,-151.0,0.00016787,2]
[405568065,1771199441586,-721.12765535,0.00016787,2]
[405568066,1771199441596,-500.0,0.00016787,2]
[405568067,1771199441607,-258.07423512,0.00016787,2]
[405568068,1771199441616,-250.0,0.00016787,2]
[405568069,1771199441627,-250.0,0.00016787,2]
[405568070,1771199441637,-250.0,0.00016787,2]
[405568071,1771199441647,-250.0,0.00016787,2]
[405568072,1771199441657,-250.0,0.00016787,2]
[405568073,1771199441668,-174.61919141,0.00016787,2]
[405568074,1771199441678,-277.35679052,0.00016787,2]
[405568075,1771199441688,-578.20924308,0.00016787,2]
[405568076,1771199441699,-500.0,0.00016787,2]
[405568077,1771199441709,-500.0,0.00016787,2]
[405568078,1771199441719,-500.0,0.00016787,2]
[405568079,1771199441729,-500.0,0.00016787,2]
[405568080,1771199441740,-693.3919763,0.00016787,2]
[405568081,1771199441751,-500.0,0.00016787,2]
[405568082,1771199441762,-500.0,0.00016787,2]
[405568083,1771199441772,-500.0,0.00016787,2]
[405568084,1771199441783,-500.0,0.00016787,2]
[405568085,1771199441792,-500.0,0.00016787,2]
[405568086,1771199441803,-500.0,0.00016787,2]
[405568087,1771199441815,-500.0,0.00016787,2]
[405568088,1771199441825,-162.380719,0.00016787,2]
[405568089,1771199441835,-209.40437684,0.00016787,2]
[405568090,1771199441844,-11393.76567565,0.000168,2]
[405568091,1771199441855,-1845.63,0.00016814,2]
[405568092,1771199441864,-433.0,0.00016822,2]
[405568093,1771199441874,-719.04747942,0.00016842,2]
[405568094,1771199441884,-776.21,0.00016879,2]
[405568095,1771199441893,-745.65223616,0.00016897,2]
[405568096,1771199441903,-773.2413689,0.00016952,2]
[405568097,1771199441913,-3690.90610235,0.00016957,2]
[405568098,1771199441923,-200.0,0.00016983,2]
[405568099,1771199441932,-200.0,0.00016983,2]
[405568100,1771199441942,-500.0,0.00016983,2]
[405568101,1771199441953,-300.0,0.00017,2]
[405568102,1771199441964,-801.85129955,0.00017007,2]
[405568103,1771199441974,-831.51979763,0.00017062,2]
[405568104,1771199441983,-656.98292051,0.00017075,2]
[405568105,1771199441993,-154.29748515,0.00017081,2]
[405568106,1771199442003,-862.28603014,0.00017117,2]
[405568107,1771199442013,-776.21,0.00017153,2]
[405568108,1771199442023,-11393.76567565,0.00017167,2]
[405568109,1771199442033,-894.19061326,0.00017172,2]
[405568110,1771199442043,-927.27566595,0.00017227,2]
[405568111,1771199442054,-2191.88979337,0.0001724,2]
[405568112,1771199442064,-961.58486559,0.00017282,2]
[405568113,1771199442074,-771.01748645,0.00017335,2]
[405568114,1771199442084,-217.15233878,0.00017335,2]
[405568115,1771199442093,-181.08010149,0.00017335,2]
[405568116,1771199442106,-287.61899177,0.00017335,2]
[405568117,1771199442116,-217.15233878,0.00017335,2]
[405568118,1771199442126,-997.16350561,0.00017337,2]
[405568119,1771199442136,-250.0,0.00017394,2]
[405568120,1771199442146,-490.21,0.00017427,2]
[405568121,1771199442156,-3690.90610235,0.00017429,2]
[405568122,1771199442166,-150.0,0.00017433,2]
[405568123,1771199442176,-202.27978627,0.00017531,2]
[405568124,1771199442187,-200.0,0.00017531,2]
[405568125,1771199442197,-500.0,0.00017531,2]
[405568126,1771199442208,-11393.76567565,0.00017533,2]
[405568127,1771199442218,-1845.63,0.00017545,2]
[405568128,1771199442228,-226.99720572,0.00017661,2]
[405568129,1771199442237,-481.80300107,0.0001774,2]
[405568130,1771199442247,-611.0,0.00017784,2]
[405568131,1771199442377,-500.0,0.00017808,2]
[405568132,1771199442387,-500.0,0.00017808,2]
[405568133,1771199442397,-500.0,0.00017808,2]
[405568134,1771199442406,-500.0,0.00017808,2]
[405568135,1771199442416,-500.0,0.00017808,2]
[405568136,1771199442426,-500.0,0.00017808,2]
[405568137,1771199442435,-500.0,0.00017808,2]
[405568138,1771199442445,-500.0,0.00017808,2]
[405568139,1771199442455,-502.23295609,0.00017808,2]
[405568140,1771199442465,-500.0,0.00017808,2]
[405568141,1771199442475,-500.0,0.00017808,2]
[405568142,1771199442485,-150.0,0.00017808,2]
[405568143,1771199442495,-200.0,0.00017808,5]
[405568144,1771199442505,-160.0,0.0001786,2]
[405568145,1771199442515,-173.48298697,0.0001786,2]
[405568146,1771199442524,-375.71342918,0.00017883,2]
[405568147,1771199442535,-225.18697532,0.00017883,2]
[405568148,1771199442544,-187.78006525,0.00017883,2]
[405568149,1771199442554,-298.26089446,0.00017883,2]
[405568150,1771199442564,-225.18697532,0.00017883,2]
[405568151,1771199442576,-35745.81120585,0.000179,2]
[405568152,1771199442585,-25000.0,0.000179,3]
[405568153,1771199442594,-160.0,0.000179,3]
[405568154,1771199442604,-3690.90610235,0.000179,2]
[405568155,1771199442614,-656.98292051,0.000179,2]
[405568156,1771199442624,-11393.76567565,0.000179,2]
[405568157,1771199442634,-2191.88979337,0.000179,2]
[405568158,1771199442644,-611.0,0.00017945,2]
[405568159,1771199442654,-594.94167008,0.00017973,2]
[405568160,1771199442664,-502.4210461,0.00017973,2]
[405568161,1771199442675,-500.0,0.00017973,2]
[405568162,1771199442686,-500.0,0.00017973,2]
[405568163,1771199442697,-500.0,0.00017973,2]
[405568164,1771199442707,-158.08351023,0.00017973,2]
[405568165,1771199442716,-170.13045589,0.00017973,2]
[405568166,1771199442726,-500.66015675,0.00017973,2]
[405568167,1771199442736,-500.0,0.00017973,2]
[405568168,1771199442747,-500.0,0.00017982,2]
[405568169,1771199442759,-201567.762994,0.0001799,2]
[405568170,1771199442769,-611.0,0.00017995,2]
[405568171,1771199442780,-151.0,0.00017997,2]
[405568172,1771199442790,-155.0,0.00017999,2]
[405568173,1771199442800,-300.0,0.00017999,2]
[405568174,1771199442809,-300.0,0.00017999,2]
[405568175,1771199442819,-689.33478956,0.00017999,2]
[405568176,1771199442828,-666.0,0.00017999,2]
[405568177,1771199442838,-150.0,0.00017999,2]
[405568178,1771199442850,-153.29467918,0.00017999,2]
[405568179,1771199442861,-401363.0882723,0.00017999,2]
[405568180,1771199442871,-5018466.23368706,0.00018,2]
[405568181,1771199443706,-8473228.95692463,0.00018,2]
[405568182,1771199443722,-421.11578465,0.00018,2]
[405568183,1771199443733,-4697.71452846,0.00018,2]
[405568184,1771199443896,-6600.50259506,0.00018,2]
[405568185,1771199443932,-204962.99686533,0.00018,2]
[405568188,1771199445075,-224.20642306,0.00017973,2]
[405568189,1771199445085,-913.58894406,0.00018,2]
[405568190,1771199445227,-72209.20913979,0.00018,2]
[405568191,1771199445239,-980.9897596,0.00018,2]
[405568192,1771199445250,-521.71363247,0.00018,2]
[405568197,1771199445736,-7877.97197467,0.00018,2]
[405568198,1771199445747,-6873.37606081,0.00018,2]
[405568199,1771199445758,-1963.30000003,0.00018,2]
[405568200,1771199445770,-3165.45,0.00018,2]
[405568201,1771199445784,-10529.45616897,0.00018,2]
[405568202,1771199445927,-927.34473525,0.00018,2]
[405568203,1771199445939,-9241.54327382,0.00018,2]
[405568205,1771199446162,-427.32439843,0.00018,2]
[405568206,1771199446249,-523.49586585,0.00018,2]
[405568207,1771199446262,-416.30793719,0.00018,2]
[405568212,1771199508655,-1278.1228,0.000146,2]
[405568213,1771199508686,-300.0,0.00014613,2]
[405568214,1771199508715,-250.0,0.00014625,2]
[405568215,1771199508745,-647.32962088,0.00014625,2]
[405568216,1771199508778,-195.0,0.0001465,2]
[405568217,1771199508809,-500.0,0.000147,2]
[405568218,1771199508838,-300.0,0.00014763,2]
[405568219,1771199508866,-300.0,0.00014763,2]
[405568220,1771199508896,-363.16895611,0.00014763,2]
[405568221,1771199508926,-230.81799986,0.00014799,2]
[405568222,1771199510633,11271.1212463,0.000146,2]
[405568228,1771199777633,-250.23868392,0.000145,2]
[405568229,1771199777664,-250.0,0.0001455,2]
[405568230,1771199777692,-150.0,0.00014599,2]
[405568232,1771199850403,-1200.0,0.00014599,2]
[405568233,1771199850433,-300.0,0.00014599,2]
[405568234,1771199850464,-150.0,0.00014599,2]
[405568235,1771199850492,-195.0,0.000146,2]
[405568236,1771199850726,-1373.96200901,0.000146,2]
[405568237,1771199971731,-300.0,0.00014599,2]
[405568238,1771199971784,-11900.0,0.000146,2]